fUSD/lending_fUSD_20260608
["ID","MTS","AMOUNT","RATE_DAILY","PERIOD"]
[424453999,1780923032000,-500.0,0.00014173,2]
[424453992,1780923032000,-500.0,0.00014173,2]
[424453956,1780923032000,-443.0,0.00013909,2]
[424453954,1780923032000,-457.0,0.00013909,2]
[424453965,1780923032000,-150.0,0.00013987,2]
[424453958,1780923032000,-150.0,0.00013916,2]
[424453961,1780923032000,-456.0,0.00013948,2]
[424453967,1780923032000,-250.0,0.00014,2]
[424453962,1780923032000,-166.66,0.00013973,2]
[424453969,1780923032000,-166.66,0.0001411,2]
[424453971,1780923032000,-150.0,0.0001413,2]
[424453973,1780923032000,-500.0,0.00014169,2]
[424453950,1780923032000,-456.0,0.00013906,2]
[424453986,1780923032000,-500.0,0.00014173,2]
[424453985,1780923032000,-500.0,0.00014173,2]
[424453989,1780923032000,-500.0,0.00014173,2]
[424453975,1780923032000,-500.0,0.00014169,2]
[424453988,1780923032000,-500.0,0.00014173,2]
[424453987,1780923032000,-500.0,0.00014173,2]
[424453977,1780923032000,-352.77194654,0.00014169,2]
[424453982,1780923032000,-500.0,0.00014173,2]
[424453980,1780923032000,-500.0,0.00014169,2]
[424453990,1780923032000,-500.0,0.00014173,2]
[424453991,1780923032000,-500.0,0.00014173,2]
[424453984,1780923032000,-500.0,0.00014173,2]
[424454053,1780923033000,-600.0,0.00014265,2]
[424454051,1780923033000,-600.0,0.00014265,2]
[424454050,1780923033000,-600.0,0.00014265,2]
[424454044,1780923033000,-2500.0,0.00014265,2]
[424454047,1780923033000,-300.0,0.00014265,2]
[424454048,1780923033000,-300.0,0.00014265,2]
[424454046,1780923033000,-300.0,0.00014265,2]
[424454043,1780923033000,-2500.0,0.00014265,2]
[424454049,1780923033000,-342.4450687,0.00014265,2]
[424454055,1780923033000,-300.0,0.00014265,2]
[424454058,1780923033000,-200.0,0.00014265,2]
[424454056,1780923033000,-200.0,0.00014265,2]
[424454054,1780923033000,-600.0,0.00014265,2]
[424454057,1780923033000,-200.0,0.00014265,2]
[424454060,1780923033000,-200.0,0.00014265,2]
[424454059,1780923033000,-200.0,0.00014265,2]
[424454062,1780923033000,-150.0,0.00014344,2]
[424454068,1780923033000,-500.0,0.00014451,2]
[424454061,1780923033000,-700.0,0.000143,5]
[424454063,1780923033000,-700.0,0.00014351,2]
[424454045,1780923033000,-300.0,0.00014265,2]
[424454052,1780923033000,-600.0,0.00014265,2]
[424454041,1780923033000,-2500.0,0.00014265,2]
[424454028,1780923033000,-500.0,0.00014173,2]
[424454040,1780923033000,-2500.0,0.00014265,2]
[424454067,1780923033000,-446.0,0.00014451,2]
[424454021,1780923033000,-500.0,0.00014173,2]
[424454022,1780923033000,-500.0,0.00014173,2]
[424454019,1780923033000,-500.0,0.00014173,2]
[424454020,1780923033000,-500.0,0.00014173,2]
[424454023,1780923033000,-500.0,0.00014173,2]
[424454026,1780923033000,-500.0,0.00014173,2]
[424454024,1780923033000,-500.0,0.00014173,2]
[424454027,1780923033000,-500.0,0.00014173,2]
[424454025,1780923033000,-500.0,0.00014173,2]
[424454034,1780923033000,-255.0,0.00014188,2]
[424454029,1780923033000,-500.0,0.00014173,2]
[424454030,1780923033000,-500.0,0.00014173,2]
[424454033,1780923033000,-230.9383663,0.00014173,2]
[424454031,1780923033000,-500.0,0.00014173,2]
[424454032,1780923033000,-500.0,0.00014173,2]
[424454035,1780923033000,-300.0,0.000142,5]
[424454037,1780923033000,-150.0,0.00014237,2]
[424454036,1780923033000,-152.0,0.00014233,7]
[424454039,1780923033000,-166.66,0.00014247,2]
[424454038,1780923033000,-150.0,0.00014237,2]
[424454042,1780923033000,-2500.0,0.00014265,2]
[424454065,1780923033000,-1100.0,0.000144,5]
[424454064,1780923033000,-166.66,0.00014384,2]
[424454066,1780923033000,-170.07468546,0.00014446,2]
[424454095,1780923033000,-15.61878264,0.00014451,2]
[424454096,1780923033000,-190.169551,0.00014464,2]
[424454098,1780923033000,-361.68472692,0.000145,5]
[424454094,1780923033000,-391.34847306,0.00014451,2]
[424454099,1780923033000,-431.72491626,0.000145,5]
[424454097,1780923033000,-150.0,0.00014487,2]
[424454100,1780923033000,-706.59035682,0.000145,5]
[424454101,1780923033000,-1840.04901839,0.00014525,2]
[424454103,1780923033000,-72.1725016,0.00014525,2]
[424454104,1780923033000,-551.58732334,0.00014525,2]
[424454105,1780923033000,-988.46017311,0.00014525,2]
[424454106,1780923033000,-2302.38700033,0.00014525,2]
[424454107,1780923033000,-853.85570322,0.00014525,2]
[424454108,1780923033000,-446.14429678,0.00014526,2]
[424454110,1780923033000,-1575.73615394,0.00014526,2]
[424454109,1780923033000,-538.18293477,0.00014526,2]
[424454111,1780923033000,-1641.7674847,0.00014526,2]
[424454112,1780923033000,-753.04939712,0.00014526,2]
[424454113,1780923033000,-934.27576358,0.00014526,2]
[424454115,1780923033000,-4178.649776,0.00014537,2]
[424454114,1780923033000,-931.46714532,0.00014526,2]
[424454093,1780923033000,-53.0327443,0.00014451,2]
[424454092,1780923033000,-446.0,0.00014451,2]
[424454102,1780923033000,-4903.18038001,0.00014525,2]
[424454090,1780923033000,-446.0,0.00014451,2]
[424454091,1780923033000,-446.0,0.00014451,2]
[424454069,1780923033000,-446.0,0.00014451,2]
[424454070,1780923033000,-500.0,0.00014451,2]
[424454071,1780923033000,-446.0,0.00014451,2]
[424454072,1780923033000,-247.20461285,0.00014451,2]
[424454078,1780923033000,-446.0,0.00014451,2]
[424454076,1780923033000,-446.0,0.00014451,2]
[424454079,1780923033000,-446.0,0.00014451,2]
[424454075,1780923033000,-446.0,0.00014451,2]
[424454073,1780923033000,-446.0,0.00014451,2]
[424454077,1780923033000,-446.0,0.00014451,2]
[424454074,1780923033000,-446.0,0.00014451,2]
[424454080,1780923033000,-446.0,0.00014451,2]
[424454082,1780923033000,-446.0,0.00014451,2]
[424454081,1780923033000,-446.0,0.00014451,2]
[424454083,1780923033000,-446.0,0.00014451,2]
[424454084,1780923033000,-446.0,0.00014451,2]
[424454085,1780923033000,-446.0,0.00014451,2]
[424454088,1780923033000,-446.0,0.00014451,2]
[424454087,1780923033000,-446.0,0.00014451,2]
[424454086,1780923033000,-446.0,0.00014451,2]
[424454089,1780923033000,-446.0,0.00014451,2]
[424454153,1780923034000,-500.0,0.00014625,2]
[424454152,1780923034000,-500.0,0.00014625,2]
[424454147,1780923034000,-500.0,0.00014625,2]
[424454141,1780923034000,-500.0,0.00014625,2]
[424454144,1780923034000,-500.0,0.00014625,2]
[424454149,1780923034000,-500.0,0.00014625,2]
[424454146,1780923034000,-500.0,0.00014625,2]
[424454151,1780923034000,-500.0,0.00014625,2]
[424454148,1780923034000,-500.0,0.00014625,2]
[424454155,1780923034000,-500.0,0.00014625,2]
[424454150,1780923034000,-500.0,0.00014625,2]
[424454156,1780923034000,-500.0,0.00014625,2]
[424454170,1780923034000,-500.0,0.00014625,2]
[424454164,1780923034000,-500.0,0.00014625,2]
[424454158,1780923034000,-227.81320246,0.00014625,2]
[424454163,1780923034000,-500.0,0.00014625,2]
[424454157,1780923034000,-458.55035766,0.00014625,2]
[424454160,1780923034000,-500.0,0.00014625,2]
[424454161,1780923034000,-500.0,0.00014625,2]
[424454159,1780923034000,-500.0,0.00014625,2]
[424454162,1780923034000,-500.0,0.00014625,2]
[424454165,1780923034000,-500.0,0.00014625,2]
[424454171,1780923034000,-500.0,0.00014625,2]
[424454145,1780923034000,-500.0,0.00014625,2]
[424454154,1780923034000,-500.0,0.00014625,2]
[424454142,1780923034000,-500.0,0.00014625,2]
[424454118,1780923034000,-350.0,0.00014562,2]
[424454138,1780923034000,-500.0,0.00014625,2]
[424454117,1780923034000,-150.0,0.00014558,2]
[424454116,1780923034000,-2414.20154681,0.00014537,2]
[424454172,1780923034000,-500.0,0.00014625,2]
[424454119,1780923034000,-500.0,0.00014575,2]
[424454120,1780923034000,-505.49510151,0.00014575,2]
[424454125,1780923034000,-12940.2,0.0001458,2]
[424454122,1780923034000,-501.87117652,0.00014575,2]
[424454127,1780923034000,-181.64888321,0.00014592,2]
[424454121,1780923034000,-500.0,0.00014575,2]
[424454128,1780923034000,-4809.27029055,0.00014599,2]
[424454123,1780923034000,-6592.85132279,0.00014577,2]
[424454143,1780923034000,-500.0,0.00014625,2]
[424454124,1780923034000,-14500.27,0.0001458,2]
[424454140,1780923034000,-500.0,0.00014625,2]
[424454130,1780923034000,-1900.0,0.000146,5]
[424454129,1780923034000,-3227.0,0.000146,2]
[424454132,1780923034000,-500.0,0.00014624,2]
[424454135,1780923034000,-500.0,0.00014625,2]
[424454136,1780923034000,-500.0,0.00014625,2]
[424454133,1780923034000,-500.0,0.00014624,2]
[424454131,1780923034000,-6592.85132279,0.00014617,2]
[424454134,1780923034000,-500.0,0.00014624,2]
[424454137,1780923034000,-500.0,0.00014625,2]
[424454139,1780923034000,-500.0,0.00014625,2]
[424454126,1780923034000,-297.89,0.0001458,2]
[424454173,1780923034000,-500.0,0.00014625,2]
[424454186,1780923034000,-500.0,0.00014625,2]
[424454168,1780923034000,-500.0,0.00014625,2]
[424454201,1780923034000,-1447.30992169,0.00014625,2]
[424454203,1780923034000,-1447.30992169,0.00014625,2]
[424454202,1780923034000,-1447.30992169,0.00014625,2]
[424454207,1780923034000,-1447.30992169,0.00014625,2]
[424454205,1780923034000,-597.16463478,0.00014625,2]
[424454166,1780923034000,-500.0,0.00014625,2]
[424454204,1780923034000,-1447.30992169,0.00014625,2]
[424454208,1780923034000,-1447.30992169,0.00014625,2]
[424454210,1780923034000,-1447.30992169,0.00014625,2]
[424454212,1780923034000,-1447.30992169,0.00014625,2]
[424454211,1780923034000,-1447.30992169,0.00014625,2]
[424454199,1780923034000,-1447.30992169,0.00014625,2]
[424454209,1780923034000,-1447.30992169,0.00014625,2]
[424454215,1780923034000,-1447.30992169,0.00014625,2]
[424454217,1780923034000,-1447.30992169,0.00014625,2]
[424454214,1780923034000,-1447.30992169,0.00014625,2]
[424454216,1780923034000,-1447.30992169,0.00014625,2]
[424454218,1780923034000,-1447.30992169,0.00014625,2]
[424454219,1780923034000,-1447.30992169,0.00014625,2]
[424454220,1780923034000,-1447.30992169,0.00014625,2]
[424454221,1780923034000,-1447.30992169,0.00014625,2]
[424454222,1780923034000,-1447.30992169,0.00014625,2]
[424454223,1780923034000,-1447.30992169,0.00014625,2]
[424454224,1780923034000,-1447.30992169,0.00014625,2]
[424454213,1780923034000,-1447.30992169,0.00014625,2]
[424454198,1780923034000,-1447.30992169,0.00014625,2]
[424454206,1780923034000,-1447.30992169,0.00014625,2]
[424454197,1780923034000,-351.39242597,0.00014625,2]
[424454174,1780923034000,-500.0,0.00014625,2]
[424454167,1780923034000,-500.0,0.00014625,2]
[424454175,1780923034000,-500.0,0.00014625,2]
[424454169,1780923034000,-500.0,0.00014625,2]
[424454200,1780923034000,-1447.30992169,0.00014625,2]
[424454177,1780923034000,-500.0,0.00014625,2]
[424454179,1780923034000,-500.0,0.00014625,2]
[424454182,1780923034000,-500.0,0.00014625,2]
[424454180,1780923034000,-500.0,0.00014625,2]
[424454183,1780923034000,-500.0,0.00014625,2]
[424454184,1780923034000,-500.0,0.00014625,2]
[424454181,1780923034000,-500.0,0.00014625,2]
[424454176,1780923034000,-500.0,0.00014625,2]
[424454193,1780923034000,-500.0,0.00014625,2]
[424454185,1780923034000,-500.0,0.00014625,2]
[424454178,1780923034000,-500.0,0.00014625,2]
[424454188,1780923034000,-500.0,0.00014625,2]
[424454189,1780923034000,-400.57652516,0.00014625,2]
[424454190,1780923034000,-500.0,0.00014625,2]
[424454191,1780923034000,-500.0,0.00014625,2]
[424454196,1780923034000,-500.0,0.00014625,2]
[424454192,1780923034000,-500.0,0.00014625,2]
[424454194,1780923034000,-500.0,0.00014625,2]
[424454195,1780923034000,-500.0,0.00014625,2]
[424454187,1780923034000,-500.0,0.00014625,2]
[424454233,1780923035000,-1424.28453658,0.00014625,2]
[424454240,1780923035000,-1424.28453658,0.00014625,2]
[424454235,1780923035000,-1424.28453658,0.00014625,2]
[424454238,1780923035000,-1424.28453658,0.00014625,2]
[424454237,1780923035000,-1424.28453658,0.00014625,2]
[424454241,1780923035000,-1424.28453658,0.00014625,2]
[424454236,1780923035000,-1424.28453658,0.00014625,2]
[424454234,1780923035000,-1424.28453658,0.00014625,2]
[424454229,1780923035000,-1447.30992169,0.00014625,2]
[424454231,1780923035000,-1447.30992169,0.00014625,2]
[424454230,1780923035000,-1447.30992169,0.00014625,2]
[424454226,1780923035000,-1447.30992169,0.00014625,2]
[424454225,1780923035000,-1447.30992169,0.00014625,2]
[424454227,1780923035000,-1447.30992169,0.00014625,2]
[424454228,1780923035000,-1447.30992169,0.00014625,2]
[424454232,1780923035000,-1447.30992169,0.00014625,2]
[424454239,1780923035000,-1424.28453658,0.00014625,2]
[424454249,1780923035000,-1424.28453658,0.00014625,2]
[424454243,1780923035000,-1424.28453658,0.00014625,2]
[424454242,1780923035000,-1424.28453658,0.00014625,2]
[424454256,1780923035000,-2000.0,0.00014625,2]
[424454257,1780923035000,-1972.5515,0.00014626,2]
[424454259,1780923035000,-1150.02324453,0.00014626,2]
[424454255,1780923035000,-250.0,0.00014625,2]
[424454253,1780923035000,-1424.28453658,0.00014625,2]
[424454247,1780923035000,-1424.28453658,0.00014625,2]
[424454254,1780923035000,-1424.28453656,0.00014625,2]
[424454252,1780923035000,-1424.28453658,0.00014625,2]
[424454248,1780923035000,-1424.28453658,0.00014625,2]
[424454244,1780923035000,-1424.28453658,0.00014625,2]
[424454258,1780923035000,-75394.65672026,0.00014626,2]
[424454251,1780923035000,-1424.28453658,0.00014625,2]
[424454246,1780923035000,-1424.28453658,0.00014625,2]
[424454245,1780923035000,-1424.28453658,0.00014625,2]
[424454250,1780923035000,-1424.28453658,0.00014625,2]
[424454290,1780923038000,-4809.27029055,0.00014749,2]
[424454287,1780923038000,-4809.27029055,0.00014737,2]
[424454288,1780923038000,-6592.85132279,0.00014738,2]
[424454289,1780923038000,-25000.0,0.00014742,3]
[424454285,1780923038000,-25000.0,0.00014733,3]
[424454283,1780923038000,-600.0,0.00014726,2]
[424454284,1780923038000,-4809.27029055,0.00014732,2]
[424454291,1780923038000,-25000.0,0.0001475,3]
[424454301,1780923038000,-4920.90826675,0.00014779,2]
[424454295,1780923038000,-25000.0,0.00014768,3]
[424454294,1780923038000,-25000.0,0.00014759,3]
[424454296,1780923038000,-4809.27029055,0.00014771,2]
[424454300,1780923038000,-6592.85132279,0.00014778,2]
[424454292,1780923038000,-4809.27029055,0.00014752,2]
[424454297,1780923038000,-150.0,0.00014772,2]
[424454286,1780923038000,-150.0,0.00014737,2]
[424454298,1780923038000,-494.60352973,0.00014776,2]
[424454293,1780923038000,-181.64888321,0.00014755,2]
[424454282,1780923038000,-500.0,0.00014725,2]
[424454275,1780923038000,-6592.85132279,0.00014658,2]
[424454279,1780923038000,-300.0,0.000147,5]
[424454265,1780923038000,-500.0,0.00014625,2]
[424454262,1780923038000,-215.86427702,0.00012952,2]
[424454263,1780923038000,-274.13572298,0.00014625,2]
[424454264,1780923038000,-225.86427702,0.00014625,2]
[424454267,1780923038000,-500.0,0.00014625,2]
[424454269,1780923038000,-808.11140934,0.00014626,2]
[424454268,1780923038000,-228.97,0.00014625,2]
[424454266,1780923038000,-500.0,0.00014625,2]
[424454270,1780923038000,-13060.80477994,0.00014626,2]
[424454273,1780923038000,-774.28,0.00014637,2]
[424454276,1780923038000,-10000.0,0.00014685,2]
[424454274,1780923038000,-10000.0,0.00014655,2]
[424454303,1780923038000,-25000.0,0.00014786,3]
[424454272,1780923038000,-2406571.40375593,0.00014626,2]
[424454277,1780923038000,-4809.27029055,0.00014689,2]
[424454271,1780923038000,-3015.00009,0.00014626,2]
[424454278,1780923038000,-6592.85132279,0.00014698,2]
[424454281,1780923038000,-7497.67734448,0.00014725,2]
[424454299,1780923038000,-25000.0,0.00014777,3]
[424454280,1780923038000,-25000.0,0.00014724,3]
[424454315,1780923038000,-6592.85132279,0.00014819,2]
[424454328,1780923038000,-25000.0,0.00014865,3]
[424454327,1780923038000,-6592.85132279,0.00014859,2]
[424454323,1780923038000,-169.47839,0.0001485,2]
[424454331,1780923038000,-1376.873,0.00014874,2]
[424454330,1780923038000,-25000.0,0.00014874,3]
[424454332,1780923038000,-190.932,0.00014874,2]
[424454335,1780923038000,-200.0,0.0001488,2]
[424454336,1780923038000,-25000.0,0.00014882,3]
[424454333,1780923038000,-200.0,0.00014879,2]
[424454334,1780923038000,-200.0,0.0001488,2]
[424454337,1780923038000,-25000.0,0.00014891,3]
[424454338,1780923038000,-6111.0,0.00014899,2]
[424454340,1780923038000,-25000.0,0.000149,3]
[424454341,1780923038000,-489.84630771,0.000149,2]
[424454343,1780923038000,-4948.9082,0.000149,2]
[424454342,1780923038000,-3172.0,0.000149,5]
[424454302,1780923038000,-10265.5628898,0.00014779,2]
[424454319,1780923038000,-236.42,0.00014841,2]
[424454329,1780923038000,-1363.58,0.00014866,2]
[424454339,1780923038000,-6592.85132279,0.00014899,2]
[424454324,1780923038000,-169.4784,0.0001485,2]
[424454308,1780923038000,-2000.0,0.000148,2]
[424454325,1780923038000,-172.99202504,0.00014854,2]
[424454305,1780923038000,-25000.0,0.00014794,3]
[424454314,1780923038000,-307.97874569,0.00014814,2]
[424454311,1780923038000,-15000.0,0.00014804,2]
[424454306,1780923038000,-33252.4679,0.000148,2]
[424454316,1780923038000,-25000.0,0.00014821,3]
[424454310,1780923038000,-25000.0,0.00014803,3]
[424454313,1780923038000,-25000.0,0.00014812,3]
[424454304,1780923038000,-500.0,0.00014794,2]
[424454312,1780923038000,-4809.27029055,0.00014811,2]
[424454307,1780923038000,-2000.0,0.000148,2]
[424454317,1780923038000,-25000.0,0.0001483,3]
[424454320,1780923038000,-25000.0,0.00014847,3]
[424454321,1780923038000,-500.0,0.00014849,2]
[424454326,1780923038000,-25000.0,0.00014856,3]
[424454322,1780923038000,-8413.00934282,0.0001485,2]
[424454309,1780923038000,-300.0,0.000148,5]
[424454318,1780923038000,-25000.0,0.00014838,3]
[424454388,1780923039000,-500.0,0.00014998,2]
[424454384,1780923039000,-500.0,0.00014998,2]
[424454386,1780923039000,-500.0,0.00014998,2]
[424454385,1780923039000,-500.0,0.00014998,2]
[424454383,1780923039000,-500.0,0.00014998,2]
[424454382,1780923039000,-500.0,0.00014998,2]
[424454392,1780923039000,-500.0,0.00014998,2]
[424454372,1780923039000,-500.0,0.00014998,2]
[424454374,1780923039000,-500.0,0.00014998,2]
[424454370,1780923039000,-500.0,0.00014998,2]
[424454390,1780923039000,-500.0,0.00014998,2]
[424454371,1780923039000,-500.0,0.00014998,2]
[424454381,1780923039000,-500.0,0.00014998,2]
[424454389,1780923039000,-500.0,0.00014998,2]
[424454396,1780923039000,-500.0,0.00014998,2]
[424454387,1780923039000,-500.0,0.00014998,2]
[424454394,1780923039000,-500.0,0.00014998,2]
[424454398,1780923039000,-500.0,0.00014998,2]
[424454404,1780923039000,-500.0,0.00014998,2]
[424454405,1780923039000,-500.0,0.00014998,2]
[424454395,1780923039000,-500.0,0.00014998,2]
[424454393,1780923039000,-500.0,0.00014998,2]
[424454397,1780923039000,-500.0,0.00014998,2]
[424454399,1780923039000,-500.0,0.00014998,2]
[424454400,1780923039000,-500.0,0.00014998,2]
[424454402,1780923039000,-500.0,0.00014998,2]
[424454403,1780923039000,-500.0,0.00014998,2]
[424454378,1780923039000,-500.0,0.00014998,2]
[424454391,1780923039000,-500.0,0.00014998,2]
[424454380,1780923039000,-500.0,0.00014998,2]
[424454351,1780923039000,-150.0,0.00014986,2]
[424454375,1780923039000,-500.0,0.00014998,2]
[424454346,1780923039000,-242.01832993,0.0001492,2]
[424454401,1780923039000,-500.0,0.00014998,2]
[424454344,1780923039000,-2138.0,0.000149,5]
[424454345,1780923039000,-300.0,0.000149,5]
[424454349,1780923039000,-350.0,0.00014959,2]
[424454347,1780923039000,-15000.0,0.00014959,2]
[424454352,1780923039000,-150.0,0.00014986,2]
[424454348,1780923039000,-350.0,0.00014959,2]
[424454353,1780923039000,-154.58509942,0.00014986,2]
[424454354,1780923039000,-151.0,0.00014986,2]
[424454350,1780923039000,-161.49601252,0.00014968,2]
[424454356,1780923039000,-151.0,0.00014997,2]
[424454355,1780923039000,-153.84603978,0.00014986,2]
[424454366,1780923039000,-250.0,0.00014998,2]
[424454367,1780923039000,-500.0,0.00014998,2]
[424454364,1780923039000,-500.0,0.00014998,2]
[424454365,1780923039000,-500.0,0.00014998,2]
[424454361,1780923039000,-500.0,0.00014998,2]
[424454359,1780923039000,-500.0,0.00014998,2]
[424454362,1780923039000,-500.0,0.00014998,2]
[424454358,1780923039000,-500.0,0.00014998,2]
[424454357,1780923039000,-500.0,0.00014998,2]
[424454360,1780923039000,-500.0,0.00014998,2]
[424454363,1780923039000,-500.0,0.00014998,2]
[424454368,1780923039000,-500.0,0.00014998,2]
[424454377,1780923039000,-500.0,0.00014998,2]
[424454369,1780923039000,-500.0,0.00014998,2]
[424454373,1780923039000,-500.0,0.00014998,2]
[424454379,1780923039000,-500.0,0.00014998,2]
[424454376,1780923039000,-500.0,0.00014998,2]
[424454407,1780923039000,-500.0,0.00014998,2]
[424454469,1780923039000,-500.0,0.00014999,2]
[424454408,1780923039000,-500.0,0.00014998,2]
[424454437,1780923039000,-500.0,0.00014998,2]
[424454444,1780923039000,-1035.7475478,0.00014999,2]
[424454454,1780923039000,-25414.5286306,0.00014999,2]
[424454455,1780923039000,-171.3187048,0.00014999,2]
[424454445,1780923039000,-61293.1689858,0.00014999,2]
[424454443,1780923039000,-500.0,0.00014998,2]
[424454451,1780923039000,-2645.59698709,0.00014999,2]
[424454446,1780923039000,-462.36017923,0.00014999,2]
[424454450,1780923039000,-5450.46658,0.00014999,2]
[424454452,1780923039000,-2410.3699722,0.00014999,2]
[424454447,1780923039000,-3785.9925632,0.00014999,2]
[424454448,1780923039000,-877883.9306454,0.00014999,2]
[424454453,1780923039000,-1088562.6610354,0.00014999,2]
[424454439,1780923039000,-500.0,0.00014998,2]
[424454449,1780923039000,-5829.4304769,0.00014999,2]
[424454457,1780923039000,-466.89679587,0.00014999,2]
[424454456,1780923039000,-528.86582538,0.00014999,2]
[424454468,1780923039000,-500.0,0.00014999,2]
[424454458,1780923039000,-500.0,0.00014999,2]
[424454461,1780923039000,-500.0,0.00014999,2]
[424454460,1780923039000,-338.37709891,0.00014999,2]
[424454465,1780923039000,-490.19130328,0.00014999,2]
[424454459,1780923039000,-500.0,0.00014999,2]
[424454462,1780923039000,-500.0,0.00014999,2]
[424454464,1780923039000,-500.0,0.00014999,2]
[424454466,1780923039000,-500.0,0.00014999,2]
[424454470,1780923039000,-225.35974753,0.00014999,2]
[424454406,1780923039000,-500.0,0.00014998,2]
[424454467,1780923039000,-500.0,0.00014999,2]
[424454440,1780923039000,-500.0,0.00014998,2]
[424454463,1780923039000,-500.0,0.00014999,2]
[424454435,1780923039000,-500.0,0.00014998,2]
[424454410,1780923039000,-500.0,0.00014998,2]
[424454411,1780923039000,-500.0,0.00014998,2]
[424454417,1780923039000,-500.0,0.00014998,2]
[424454409,1780923039000,-500.0,0.00014998,2]
[424454415,1780923039000,-500.0,0.00014998,2]
[424454413,1780923039000,-500.0,0.00014998,2]
[424454412,1780923039000,-500.0,0.00014998,2]
[424454414,1780923039000,-500.0,0.00014998,2]
[424454432,1780923039000,-500.0,0.00014998,2]
[424454419,1780923039000,-500.0,0.00014998,2]
[424454430,1780923039000,-500.0,0.00014998,2]
[424454429,1780923039000,-500.0,0.00014998,2]
[424454418,1780923039000,-500.0,0.00014998,2]
[424454421,1780923039000,-500.0,0.00014998,2]
[424454416,1780923039000,-500.0,0.00014998,2]
[424454425,1780923039000,-500.0,0.00014998,2]
[424454427,1780923039000,-500.0,0.00014998,2]
[424454438,1780923039000,-500.0,0.00014998,2]
[424454441,1780923039000,-500.0,0.00014998,2]
[424454436,1780923039000,-500.0,0.00014998,2]
[424454433,1780923039000,-500.0,0.00014998,2]
[424454431,1780923039000,-500.0,0.00014998,2]
[424454434,1780923039000,-500.0,0.00014998,2]
[424454420,1780923039000,-500.0,0.00014998,2]
[424454426,1780923039000,-500.0,0.00014998,2]
[424454424,1780923039000,-500.0,0.00014998,2]
[424454422,1780923039000,-500.0,0.00014998,2]
[424454428,1780923039000,-500.0,0.00014998,2]
[424454423,1780923039000,-500.0,0.00014998,2]
[424454442,1780923039000,-500.0,0.00014998,2]
[424454482,1780923040000,-300.0,0.00014999,2]
[424454480,1780923040000,-300.0,0.00014999,2]
[424454481,1780923040000,-300.0,0.00014999,2]
[424454475,1780923040000,-300.0,0.00014999,2]
[424454477,1780923040000,-300.0,0.00014999,2]
[424454478,1780923040000,-300.0,0.00014999,2]
[424454476,1780923040000,-300.0,0.00014999,2]
[424454479,1780923040000,-666.0,0.00014999,2]
[424454473,1780923040000,-300.0,0.00014999,2]
[424454471,1780923040000,-500.0,0.00014999,2]
[424454472,1780923040000,-500.0,0.00014999,2]
[424454474,1780923040000,-300.0,0.00014999,2]
[424454484,1780923040000,-449.0,0.00015,2]
[424454485,1780923040000,-451.0,0.00015,2]
[424454487,1780923040000,-2000.0,0.00015,2]
[424454483,1780923040000,-300.0,0.00014999,2]
[424454520,1780923040000,-310.0,0.00015,2]
[424454511,1780923040000,-1421944.55981545,0.00015,2]
[424454495,1780923040000,-3143.45431718,0.00015,2]
[424454494,1780923040000,-3061.17696543,0.00015,2]
[424454493,1780923040000,-3597.96751057,0.00015,2]
[424454496,1780923040000,-556.08064262,0.00015,2]
[424454491,1780923040000,-503.47737862,0.00015,2]
[424454489,1780923040000,-1158.30052897,0.00015,2]
[424454486,1780923040000,-447.0,0.00015,2]